Cogmind - Beta 10.1 @@@ ROGUE MODE // 2020.09.30 @ 22:35:39 Player: Sukhoy Result: Destroyed by as-98834 with Assembled Blade Performance ------------- Evolutions (0) 0 Regions Visited (2) 400 Robots Destroyed (32) 160 Value Destroyed (614) 614 Prototype IDs (2) 40 Alien Tech Used (0) 0 Bonus (0) 0 TOTAL SCORE: 1214 Bonus ------- None Cogmind --------- Core Integrity 0/250 Matter 270/300 Energy 160/160 System Corruption 0% Temperature Cool (25) Movement Walking (120) Location -10/Mines Parts ------- > --- POWER (1) -------- Light Nuclear Core > --- PROPULSION (2) --- Carbon-fiber Leg Carbon-fiber Leg > --- UTILITY (2) ------ Small Storage Unit Medium Storage Unit > --- WEAPON (2) ------- EM Pulse Gun Grenade Launcher > --- INVENTORY (10) --- Ion Engine Improved Heat Sink Targeting Computer Improved Utility Shielding EM Pulse Gun Medium Laser Pulse Rifle Light Assault Rifle Mining Laser Peak State ------------ > --- POWER ------------ Light Nuclear Core > --- PROPULSION ------- Carbon-fiber Leg Carbon-fiber Leg > --- UTILITY ---------- Small Storage Unit Medium Storage Unit > --- WEAPON ----------- EM Pulse Gun Grenade Launcher > --- INVENTORY -------- Ion Engine Improved Heat Sink Targeting Computer Improved Utility Shielding EM Pulse Gun Medium Laser Pulse Rifle Light Assault Rifle Mining Laser [Rating: 14] Favorites ----------- Power Ion Engine Engine Ion Engine Power Core Light Nuclear Core Propulsion Compact Wheel Leg Aluminum Leg Wheel Compact Wheel Utility Small Storage Unit Storage Small Storage Unit Hackware Hacking Suite Weapon EM Pulse Gun Energy Gun EM Pulse Gun Ballistic Gun Light Assault Rifle Launcher Grenade Launcher Special Weapon Mining Laser Special Melee Weapon Datajack Build | -11 -10 -10 ------- Run | Scr Mat Min Slots Evolved . | . . . Power . | . . . Propulsion . | . . . Utility . | . . . Weapon . | . . . Parts Attached 43 | 7 28 8 Power 7 | 1 5 1 Engine 6 | 1 5 . Core 1 | . . 1 Reactor . | . . . Propulsion 13 | 2 6 5 Treads . | . . . Leg 6 | . 2 4 Wheel 7 | 2 4 1 Hover . | . . . Flight . | . . . Utility 6 | 2 4 . Device . | . . . Storage 5 | 2 3 . Processor . | . . . Hackware 1 | . 1 . Protection . | . . . Artifact . | . . . Weapon 17 | 2 13 2 Energy Gun 8 | 2 5 1 Energy Cannon . | . . . Ballistic Gun 3 | . 3 . Ballistic Cannon . | . . . Launcher 4 | . 3 1 Special Weapon 1 | . 1 . Impact Weapon . | . . . Slashing Weapon . | . . . Piercing Weapon . | . . . Special Melee Weapon 1 | . 1 . Unidentified Prototypes . | . . . Parts Lost 9 | . 6 3 Power 1 | . 1 . Propulsion 3 | . 2 1 Utility . | . . . Weapon 5 | . 3 2 Highest Loss Streak 3 | . 3 2 Average Slot Usage (%) 95 | . 96 94 Engine 12 | . 13 8 Core 1 | . . 5 Leg 5 | . 3 11 Wheel 21 | . 22 15 Storage 24 | . 23 28 Hackware 3 | . 4 . Energy Gun 19 | . 18 23 Ballistic Gun 3 | . 4 . Launcher 1 | . 2 . Special Weapon 1 | . 1 . Naked Turns . | . . . Heaviest Build 25 | 15 25 22 Greatest Support 32 | 20 32 32 Greatest Overweight (x) 1 | 1 1 1 Average Overweight (x) . | . . . Largest Inventory Capacity 10 | 8 10 10 Average Capacity 8 | 6 8 10 Most Carried 10 | 6 10 10 Average Carried 7 | 3 6 9 Final Capacity 10 | 8 10 10 Final Carried 9 | 5 9 9 Class Distribution -------------------- 100% | Mutant Dominant Class ---------------- Mutant | -10/Materials Mutant | -10/Mines Resources | -11 -10 -10 ----------- Run | Scr Mat Min Matter Collected 680 | 270 344 66 Remotely . | . . . Salvage Created 902 | 90 532 280 Parts 56 | 2 44 10 Haulers Intercepted 1 | . 1 . Recyclers Shooed 1 | . . 1 Parts Field Recycled . | . . . Retrieved Matter . | . . . Parts Self-Destructed . | . . . Prevented . | . . . Kills | -11 -10 -10 ------- Run | Scr Mat Min Combat Hostiles Destroyed 19 | . 12 7 Guns 7 | . 5 2 Cannons 1 | . 1 . AOE 11 | . 6 5 Classes Destroyed 8 | 1 6 1 Builder 3 | . 2 1 Hauler 1 | . 1 . Recycler 4 | 1 1 2 Operator 2 | . 2 . Watcher 3 | . 3 . Swarmer 3 | . 3 . Grunt 11 | . 9 2 Assembled 5 | . . 5 Best Kill Streak 5 | 1 4 5 Combat Bots Only 5 | . 3 5 Max Kills in Single Turn 3 | 1 2 3 Gunslinging . | . . . Exploded 3 | . 2 3 Melee . | . . . Uniques/NPCs Destroyed . | . . . Combat | -11 -10 -10 -------- Run | Scr Mat Min Damage Taken 1133 | . 721 412 Core 277 | . 150 127 Absorbed by Shields . | . . . Core Remaining (%) 100 | 100 . . Volleys Fired 68 | 3 48 17 Largest 2 | 2 2 2 Hottest 100 | 80 100 80 Shots Fired 125 | 6 85 34 Gun 114 | 6 76 32 Cannon . | . . . Launcher 9 | . 7 2 Special 2 | . 2 . Kinetic 25 | . 25 . Thermal 30 | 6 24 . Explosive 9 | . 7 2 Electromagnetic 61 | . 29 32 Robot Hit Streak 8 | 5 8 6 Robot Miss Streak 4 | . 2 4 Penetration Max . | . . . Secondary Targets . | . . . Shots Hit Robots 76 | 5 55 16 Core Hits 54 | 2 34 18 Critical Hits . | . . . Critical Kills . | . . . Critical Parts Destroyed . | . . . Melee Attacks 4 | . 4 . Impact . | . . . Slashing . | . . . Piercing . | . . . Sneak Attacks . | . . . Combat Hostiles . | . . . Follow-up Attacks . | . . . Damage Inflicted 1735 | 56 1081 598 Guns 843 | 56 540 247 Cannons . | . . . Explosions 844 | . 493 351 Melee . | . . . Ramming . | . . . Kinetic 115 | . 115 . Thermal 300 | 56 202 42 Explosive 802 | . 493 309 Electromagnetic 518 | . 271 247 Impact . | . . . Slashing . | . . . Piercing . | . . . Highest Corruption . | . . . Average Corruption . | . . . Corruption Purged . | . . . Overload Shots . | . . . Overflow Damage 52 | . 25 27 Projectiles . | . . . Explosions 52 | . 25 27 Melee . | . . . Knockbacks . | . . . Impact . | . . . Kinetic . | . . . Secondary . | . . . Self-Inflicted Damage 137 | . 35 102 Shots 5 | . 2 3 Rammed . | . . . Targets Rammed . | . . . Kicked . | . . . Crushed . | . . . Highest Temperature 156 | 54 72 156 Average Temperature 33 | 28 21 56 Received Heat Transfer 414 | . 330 84 Siege Activations . | . . . Robots Corrupted . | . . . Combat Hostiles . | . . . Parts Fried 1 | . . 1 Impact Corruptions . | . . . Robots Melted . | . . . Combat Hostiles . | . . . Parts Melted 2 | 1 . 1 Heat Transferred 625 | 125 450 50 Parts Sabotaged . | . . . Parts Stolen . | . . . Parts Stripped . | . . . Power Chain Reactions 1 | . . 1 Missiles Intercepted . | . . . Alert | -11 -10 -10 ------- Run | Scr Mat Min Peak Influence 331 | 5 331 105 Initial 60 | . 3 60 Average 148 | 1 182 80 Maximum Alert Level 1 | . 1 . Low Security (%) 70 | 100 58 100 Level 1 29 | . 41 . Level 2 . | . . . Level 3 . | . . . Level 4 . | . . . Level 5 . | . . . High Security . | . . . Max Security . | . . . Squads Dispatched 5 | . 5 . Investigation 2 | . 2 . Extermination . | . . . Reinforcement 3 | . 3 . Assault . | . . . Garrison . | . . . Intercept . | . . . Construction Impeded . | . . . Haulers Reinforced . | . . . Stealth | -11 -10 -10 --------- Run | Scr Mat Min Distress Signals 2 | . 1 1 Communications Jammed . | . . . Distress Signals . | . . . Times Spotted 38 | . 22 16 Peak Tracking Total 12 | . 4 12 Tactical Retreats 2 | . 1 1 Traps | -11 -10 -10 ------- Run | Scr Mat Min Traps Triggered 3 | . 3 . Indirectly . | . . . Trap Hack Attempts . | . . . Triggered . | . . . Disarmed . | . . . Reprogrammed . | . . . Reused . | . . . Traps Extracted . | . . . Installed . | . . . Triggered . | . . . Machines | -11 -10 -10 ---------- Run | Scr Mat Min Machines Disabled 5 | . 5 . Max in Single Turn 2 | . 2 . Machines Sabotaged . | . . . Garrisons Compromised . | . . . Overloaded Fab Kills . | . . . Fab Network Shutdowns . | . . . Hacking | -11 -10 -10 --------- Run | Scr Mat Min Machines Accessed 8 | . 7 1 Terminals 5 | . 5 . Fabricators . | . . . Repair Stations 1 | . 1 . Recycling Units 1 | . 1 . Scanalyzers . | . . . Garrison Access . | . . . Total Hacks 33 | . 32 1 Successful 26 | . 25 1 Failed 7 | . 7 . Catastrophic . | . . . Database Lockouts . | . . . Manual . | . . . Terminals 28 | . 28 . Fabricators . | . . . Repair Stations 3 | . 3 . Recycling Units 1 | . 1 . Scanalyzers . | . . . Garrison Access . | . . . Terminal Hacks 23 | . 22 1 Record 10 | . 10 . Robot Analysis 1 | . 1 . Prototype ID Bank 1 | . 1 . Open Door 1 | . . 1 Branch Access Points 1 | . 1 . Emergency Access Points 1 | . 1 . Recycling Unit Index 1 | . 1 . Locate Traps 1 | . 1 . Dispatch Records 1 | . 1 . Transport Status 2 | . 2 . Hauler Manifests 1 | . 1 . Zone Layout 2 | . 2 . Fabricator Hacks . | . . . Repair Station Hacks 2 | . 2 . Scan Component 1 | . 1 . Repair 1 | . 1 . Recycling Unit Hacks 1 | . 1 . Report Inventory 1 | . 1 . Scanalyzer . | . . . Garrison Access Hacks . | . . . Unauthorized Hacks . | . . . Terminals . | . . . Fabricators . | . . . Repair Stations . | . . . Recycling Units . | . . . Scanalyzers . | . . . Garrison Access . | . . . Data Cores Recovered . | . . . Used . | . . . Hacking Detections 6 | . 6 . Full Trace Events 4 | . 4 . Feedback Events . | . . . Feedback Blocked . | . . . Robot Schematics Acquired . | . . . Robots Built . | . . . Matter . | . . . Time . | . . . Total Robot Build Rating . | . . . Part Schematics Acquired . | . . . Parts Built . | . . . Matter . | . . . Time . | . . . Total Part Build Rating . | . . . Parts Repaired 1 | . 1 . Time 26 | . 26 . Parts Recycled . | . . . Recycled Matter . | . . . Retrieved Matter . | . . . Retrieved Components . | . . . Parts Scanalyzed . | . . . Part Schematics Acquired . | . . . Parts Damaged . | . . . Bothacking | -11 -10 -10 ------------ Run | Scr Mat Min Used RIF Installer . | . . . Robots Hacked 1 | . 1 . Non-combat . | . . . Combat 1 | . 1 . Robot Hacks Applied 3 | . 3 . parse_system 3 | . 3 . Relay Couplers Released . | . . . Robots Rewired . | . . . Allies Hacked . | . . . Hacks Repelled . | . . . Allies | -11 -10 -10 -------- Run | Scr Mat Min Total Allies . | . . . Largest Group . | . . . Highest-Rated Group . | . . . Highest-Rated Ally . | . . . Total Orders . | . . . Ally Attacks . | . . . Total Damage . | . . . Kills . | . . . Allies Corrupted . | . . . Allies Melted . | . . . Intel | -11 -10 -10 ------- Run | Scr Mat Min Robot Analysis Total 1 | . 1 . Derelict Logs Recovered 1 | . . 1 Drone Launches . | . . . Drone Recoveries . | . . . Exploration | -11 -10 -10 ------------- Run | Scr Mat Min Turns Passed 1260 | 63 894 303 Spaces Moved 866 | 44 620 202 Core 3 | 3 . . Treads . | . . . Legs 134 | . 55 79 Wheels 729 | 41 565 123 Hover . | . . . Flight . | . . . Fastest Speed 50 | 50 80 90 Average Speed 98 | 80 96 108 Slowest Speed 150 | 100 150 150 Overloaded Moves . | . . . Propulsion Burnouts . | . . . Robots Hopped . | . . . Cave-ins Triggered . | . . . Exploration Rate (%) 45 | 3 85 48 Regions Visited 2 Branch Regions 1 Pre-discovered Areas . | . . . Known Exits Taken 1 | . 1 . Unknown Exits Taken 1 | 1 . . Scrap Searched 1 | . . 1 Spaces Dug . | . . . Terrain Destroyed 56 | . 31 25 Melee . | . . . Projectile . | . . . AOE 56 | . 31 25 Terrain Rammed . | . . . Walls Destroyed . | . . . Machines Disabled . | . . . Actions | -11 -10 -10 --------- Run | Scr Mat Min Total 1141 | 64 824 253 Wait 101 | . 88 13 Move 864 | 43 619 202 Hop . | . . . Pick Up 44 | 11 25 8 Fast Attach 3 | 1 2 . Attach 20 | 6 10 4 Detach . | . . . Swap 20 | . 16 4 Drop 17 | . 12 5 Fire 68 | 3 48 17 Melee 4 | . 4 . Ram . | . . . Kick . | . . . Crush . | . . . Escape Stasis . | . . . Rewire . | . . . Trap . | . . . Miscellaneous . | . . . Route ------- -11/Scrapyard -10/Materials (discovered 4 exits: [*Mat x2] / *Min x2) -10/Mines History --------- Turn | Location | Event 28 | -11/Scrapyard | Discovered new exit (range 13) 64 | -11/Scrapyard | Entered Materials 170 | -10/Materials | Discovered new exit (range 9) 184 | -10/Materials | Identified exit to Mines 238 | -10/Materials | Discovered new exit (range 11) 313 | -10/Materials | Build established: Mutant 318 | -10/Materials | Lost 3 parts (1p1n1w) 400 | -10/Materials | Core integrity fell below 50% 430 | -10/Materials | Lost 3 parts (1n2w) 504 | -10/Materials | Discovered new exit (range 16) 733 | -10/Materials | Repaired Ion Engine 958 | -10/Materials | Entered Mines 1158 | -10/Mines | Met a Derelict who couldn't figure out how to use a Trap Extractor 1159 | -10/Mines | Core integrity fell below 20% 1201 | -10/Mines | Assembled infested the area 1229 | -10/Mines | Learned Materials terminal intel 1261 | -10/Mines | Destroyed by as-98834 with Assembled Blade Last Messages --------------- Acquired Imp. Utility Shielding. Dropped Mining Laser. U-05 Engineer lays Concrete. Acquired Mining Laser. U-05 Engineer lays Concrete. K-01 Serf collects debris. U-05 Engineer lays Concrete. K-01 Serf collects debris. ALERT: Infestation in the mines, dispatching Demolisher response squad. K-01 Serf collects debris. Acquired derelict log, extracted data. Data stored: Materials terminal intel. A derelict is hurriedly installing traps. Acquired 20 matter. as-83942 destroyed. as-82459 destroyed. as-23560 destroyed. as-18519 destroyed. Destroyed Asb. Hover Unit. as-29151 destroyed. Map ----- +----------------------------------------------------+ | ????????## %!### ! ###???## ##????? | | ?????????# | %### ## ##??# ###?????? | | ?????????# = X #?## ##???????? | | ?????????# !%= ### ##????????? | | ?????????## = ##?????????? | | ??????????### ### ###??????????? | | ????????????## ##### ##?# #????????????? | | ?????????????# ##???# ##??# #????????????? | | ?????????????# ####????# #???# #????????????? | | ?????????????# ##???????# #???# #????????????? | | ?????????????# #????????# #???# #????????????? | | ?????????????# ########## #???# #????????????? | | ?????????????# #???# ????????????? | | ?????????????# ############???# ????????????? | | ?????????????# # #???????###????????????? | | ????????????## # ^ ## ???????????????????????? | | ???????????## ^#^ ????????????????????????? | | ???????????# # #?#??????????????????????? | | ???????????# # # #??????????????????????? | | ???????????## ## #??????????????????????? | | ????????????###?## ####??????????????????????? | | ?????????????????# ##?????????????????????????? | | ?????????????????# #?#######??????????????????? | | ?????????????????# ### #??????????????????? | | ?????????????????# ## ####???????????????? | | ????????""" #### ## @aaaa%= a= %????????? | | ????????""" % %a ##a ! %%????????? | | ???? ####### # ##?????????????????? | | ????????????????????# ######??????????????????? | | ????????????????????# #???????????????????????? | | ???????????????????? #???????????????????????? | | ???????????????????? #???????????????????????? | | ???????????????????"" #???????????????????????? | | ???????????????????"" #???????????????????????? | | ???????????????????"" #???????????????????????? | | ???????????????????? ????????????????????????? | | ???????????????????? ????????????????????????? | | ????????????????????##????????????????????????? | | ??????????????????????????????????????????????? | | ??????????????????????????????????????????????? | | ??????????????????????????????????????????????? | | ??????????????????????????????????????????????? | | ??????????????????????????????????????????????? | | ??????????????????????????????????????????????? | | ??????????????????????????????????????????????? | | ??????????????????????????????????????????????? | | ??????????????????????????????????????????????? | | ??????????????????????????????????????????????? | | ??????????????????????????????????????????????? | | ??????????????????????????????????????????????? | +----------------------------------------------------+ Best States ------------- Heat Dissipation 25 Energy Generation 14 Energy Capacity 250 Matter Stores 300 Matter Capacity 300 Sight Range 16 Terrain Scan Density 10 Evasion (%) 44 Offensive Hacking 10 Item Schematics ----------------- None Robot Schematics ------------------ None Fabricated ------------ Nothing Alien Tech Used ----------------- None Achievements -------------- None Challenges ------------ None Game ------ Seed FissionSensorReactor Manual? 0 Play Time 00:25:46 Cumulative 11.0 hours Start 2020.09.30 @ 22:01:23 End 2020.09.30 @ 22:35:39 Sessions 1 Manual Loads 0 Difficulty Rogue Special Mode None Game No. 13 Rogue 13 Adventurer 0 Explorer 0 Win Type - Total 0 Types 0/0/0/0/0/0/0/0/0 Lore% 3 Gallery% 17 Achievement% 15 Wizard Run 0 Options --------- ASCII 0 Keyboard 0 Movement Mouse Keybinds 0 Fullscreen 1 Font 18/TerminusBold Map View 76x50 Tactical HUD 0 Map Filters NONE Filters NONE Steam 1 RUN: 2d7b50b3-e98a-4ca2-9fdd-468a28e9339e